Cogmind - Beta 17 @@@ ROGUE MODE // 2026.08.17 @ 14:15:04 Player: THN-L0C Result: Smashed by cave-in Performance ------------- Evolutions (0) 0 Regions Visited (2) 400 Robots Destroyed (23) 115 Value Destroyed (649) 649 Prototype IDs (0) 0 Alien Tech Used (0) 0 Bonus (0) 0 TOTAL SCORE: 1164 Bonus ------- None Cogmind --------- Core Integrity 0/250 Matter 132/450 Energy 230/250 System Corruption 0% Temperature Cool (0) Movement Treading (250) Ox1 Location -10/Subcaves Parts ------- > --- POWER (1) -------- Ion Engine > --- PROPULSION (2) --- Light Treads Spiked Treads > --- UTILITY (2) ------ High-capacity Storage Unit Large Matter Pod > --- WEAPON (2) ------- Battle Cannon Grenade Launcher > --- INVENTORY (20) --- Ion Engine Light Ion Engine Meta Core Light Treads Disposable Heat Sink Large Matter Pod (0) High-capacity Matter Pod (0) Scrap Shield Subdweller Laser Subdweller Beam Cannon Light Assault Rifle Light Assault Rifle Battle Rifle Grenade Launcher Subdweller Shrapnel Launcher Mining Laser Peak State ------------ > --- POWER ------------ Ion Engine > --- PROPULSION ------- Light Treads Spiked Treads > --- UTILITY ---------- High-capacity Storage Unit Large Matter Pod > --- WEAPON ----------- Battle Cannon Grenade Launcher > --- INVENTORY -------- Ion Engine Light Ion Engine Meta Core Light Treads Disposable Heat Sink Large Matter Pod High-capacity Matter Pod Scrap Shield Subdweller Laser Subdweller Beam Cannon Light Assault Rifle Light Assault Rifle Battle Rifle Grenade Launcher Subdweller Shrapnel Launcher Mining Laser [Rating: 12] Favorites ----------- Power Light Ion Engine Engine Light Ion Engine Propulsion Light Treads Treads Light Treads Utility High-capacity Storage Unit Device Seismic Detector Storage High-capacity Storage Unit Weapon Light Assault Rifle Ballistic Gun Light Assault Rifle Ballistic Cannon Battle Cannon Launcher Grenade Launcher Build | -11 -10 -10 ------- Run | Yrd Mat Sub Slots Evolved . | . . . Power . | . . . Propulsion . | . . . Utility . | . . . Weapon . | . . . Parts Attached 16 | 7 3 6 Power 2 | 1 . 1 Engine 2 | 1 . 1 Core . | . . . Reactor . | . . . Propulsion 5 | 2 1 2 Treads 5 | 2 1 2 Leg . | . . . Wheel . | . . . Hover . | . . . Flight . | . . . Utility 4 | 2 1 1 Device 1 | 1 . . Storage 3 | 1 1 1 Processor . | . . . Hackware . | . . . Protection . | . . . Artifact . | . . . Weapon 5 | 2 1 2 Energy Gun . | . . . Energy Cannon . | . . . Ballistic Gun 2 | 2 . . Ballistic Cannon 1 | . . 1 Launcher 2 | . 1 1 Special Weapon . | . . . Impact Weapon . | . . . Slashing Weapon . | . . . Piercing Weapon . | . . . Special Melee Weapon . | . . . Unidentified Prototypes . | . . . Parts Lost 5 | . . 5 Power 1 | . . 1 Propulsion 2 | . . 2 Utility 1 | . . 1 Weapon 1 | . . 1 Highest Loss Streak 4 | . . 4 To Critical Strikes . | . . . Average Backups 11 | . 6 16 Power 1 | . . 2 Propulsion 1 | . . 1 Utility 3 | . 2 4 Weapon 5 | . 2 7 Tool/Special . | . . . Unused Backups 14 | . 1 13 Power 2 | . . 2 Propulsion . | . . . Utility 5 | . 1 4 Weapon 6 | . . 6 Tool/Special 1 | . . 1 Average Slot Usage (%) 93 | . 100 88 Engine 13 | . 14 13 Treads 27 | . 28 27 Device 6 | . 14 1 Storage 15 | . 14 16 Ballistic Gun 13 | . 16 11 Ballistic Cannon 1 | . . 2 Launcher 12 | . 11 14 Peak Build Rating 12 | 7 8 12 Average Rating 7 | 5 7 8 On Entrance 5 | . 7 8 Avg Prop Armor Cover (%) . | . . . Naked Turns . | . . . Heaviest Build 54 | 11 48 54 Greatest Support 40 | 40 40 40 Greatest Overweight (x) 1 | . 1 1 Average Overweight (x) . | . . 1 Largest Inventory Capacity 20 | 8 20 20 Average Capacity 17 | 7 14 20 Most Carried 20 | 2 10 20 Average Carried 12 | . 6 16 Final Capacity 20 | 8 20 20 Final Carried 17 | 2 10 17 Class Distribution -------------------- 100% | Mutant Dominant Class ---------------- Mutant | -10/Materials Mutant | -10/Subcaves Resources | -11 -10 -10 ----------- Run | Yrd Mat Sub Matter Collected 651 | 333 117 201 Remotely . | . . . Salvage Created 407 | 117 143 147 Parts 36 | 8 13 15 Haulers Intercepted . | . . . Recyclers Shooed . | . . . Parts Field Recycled . | . . . Retrieved Matter . | . . . Parts Self-Destructed 4 | . . 4 Prevented . | . . . Parts Restored . | . . . Kills | -11 -10 -10 ------- Run | Yrd Mat Sub Combat Hostiles Destroyed 17 | . 7 10 Cannons 1 | . . 1 AOE 16 | . 7 9 Classes Destroyed 8 | 3 3 2 Worker 2 | 1 1 . Builder 1 | . 1 . Tunneler 2 | 2 . . Recycler 1 | 1 . . Swarmer 3 | . 3 . Grunt 4 | . 4 . Artisan 1 | . . 1 Subdweller 10 | . . 10 Best Kill Streak 4 | 1 3 4 Combat Bots Only 4 | . 3 4 Max Kills in Single Turn 2 | 1 2 2 Gunslinging . | . . . Exploded 2 | . 2 2 Melee . | . . . Uniques/NPCs Destroyed . | . . . Combat | -11 -10 -10 -------- Run | Yrd Mat Sub Hostile Shots Fired 42 | . 14 28 Missed 15 | . 7 8 Hits 27 | . 7 20 Projectile 27 | . 7 20 AOE 1 | . . 1 Critical Strikes 1 | . . 1 Damage Taken 1232 | . 79 1153 Core 293 | . 18 275 Absorbed by Shields . | . . . Core Remaining (%) 100 | 100 . . Volleys Fired 53 | 9 17 27 Largest 2 | 2 1 2 Hottest 60 | 40 30 60 Shots Fired 63 | 18 17 28 Gun 18 | 18 . . Cannon 5 | . . 5 Launcher 40 | . 17 23 Special . | . . . Kinetic 23 | 18 . 5 Thermal . | . . . Explosive 40 | . 17 23 Electromagnetic . | . . . Robot Hit Streak 13 | 7 . 13 Robot Miss Streak 2 | 2 . 1 Penetration Max . | . . . Secondary Targets . | . . . Shots Hit Robots 30 | 10 . 20 Core Hits 44 | 7 19 18 Critical Kills . | . . . Critical Parts Destroyed . | . . . Critical Strikes . | . . . Melee Attacks . | . . . Impact . | . . . Slashing . | . . . Piercing . | . . . Sneak Attacks . | . . . Combat Hostiles . | . . . Follow-up Attacks . | . . . Damage Inflicted 1894 | 77 474 1343 Guns 77 | 77 . . Cannons 80 | . . 80 Explosions 1729 | . 466 1263 Melee . | . . . Ramming 8 | . 8 . Kinetic 157 | 77 . 80 Thermal . | . . . Explosive 1729 | . 466 1263 Electromagnetic . | . . . Impact . | . . . Slashing . | . . . Piercing . | . . . Highest Corruption . | . . . Average Corruption . | . . . Corruption Purged . | . . . Corruption Blocked . | . . . Overload Shots . | . . . Overflow Damage 7 | . 4 3 Projectiles . | . . . Explosions 7 | . 4 3 Melee . | . . . Knockbacks 1 | . . 1 Impact . | . . . Kinetic 1 | . . 1 Secondary . | . . . Self-Inflicted Damage 44 | . 3 41 Shots 6 | . 1 5 Rammed 5 | . 5 . Targets Rammed 6 | . 6 . Kicked . | . . . Crushed 1 | . 1 . Highest Temperature 264 | . 4 264 Average Temperature 111 | . 4 132 Received Heat Transfer 352 | . 18 334 Siege Activations . | . . . Martial Activations . | . . . Shielding Activations . | . . . Robots Disrupted . | . . . Combat Hostiles . | . . . Robots Corrupted . | . . . Combat Hostiles . | . . . Parts Fried . | . . . Impact Corruptions . | . . . Robots Melted . | . . . Combat Hostiles . | . . . Parts Melted . | . . . Heat Transferred . | . . . Parts Sabotaged . | . . . Parts Stolen . | . . . Parts Stripped . | . . . Power Chain Reactions . | . . . Alert | -11 -10 -10 ------- Run | Yrd Mat Sub Maximum Alert Level . | . . . Low Security (%) 100 | 100 100 . Level 1 . | . . . Level 2 . | . . . Level 3 . | . . . Level 4 . | . . . Level 5 . | . . . High Security . | . . . Max Security . | . . . Peak Influence 192 | 5 192 . Initial . | . . . Average 51 | . 56 . Influence Increases 358 | 20 338 . Destroy 0b10 Robot/C 140 | . 140 . Destroy 0b10 Robot/NC 30 | 20 10 . Destroy Leader 30 | . 30 . Successful Hack 18 | . 18 . Disable Machine 45 | . 45 . Destroy Structure 95 | . 95 . Influence Decreases 358 | 20 329 9 Entered New Map 5 | . . 5 Time Decay 353 | 20 329 4 Squads Dispatched 2 | . 2 . Investigation 2 | . 2 . Extermination . | . . . Reinforcement . | . . . Assault . | . . . Garrison . | . . . Intercept . | . . . Searches Triggered . | . . . Construction Impeded . | . . . Haulers Reinforced . | . . . Active Scanning Responses . | . . . Cargo Convoy Interrupts . | . . . Stealth | -11 -10 -10 --------- Run | Yrd Mat Sub Distress Signals . | . . . Communications Jammed . | . . . Distress Signals . | . . . Times Spotted 26 | . 15 11 Peak Tracking Total 3 | . 3 2 Tactical Retreats . | . . . Traps | -11 -10 -10 ------- Run | Yrd Mat Sub Traps Triggered 1 | . 1 . Indirectly . | . . . Trap Hack Attempts . | . . . Triggered . | . . . Disarmed . | . . . Reprogrammed . | . . . Reused . | . . . Traps Extracted . | . . . Installed . | . . . Triggered . | . . . Machines | -11 -10 -10 ---------- Run | Yrd Mat Sub Machines Disabled 3 | . 3 . Max in Single Turn 1 | . 1 . Machines Repaired . | . . . Machines Dismantled . | . . . Machines Sabotaged . | . . . Overloaded Fab Kills . | . . . Hacking | -11 -10 -10 --------- Run | Yrd Mat Sub Machines Accessed 7 | . 7 . Terminals 7 | . 7 . Fabricators . | . . . Repair Stations . | . . . Recycling Units . | . . . Scanalyzers . | . . . Garrison Access . | . . . Total Hacks 16 | . 16 . Successful 8 | . 8 . Failed 8 | . 8 . Catastrophic 1 | . 1 . Database Lockouts . | . . . Manual 16 | . 16 . Terminals 16 | . 16 . Fabricators . | . . . Repair Stations . | . . . Recycling Units . | . . . Scanalyzers . | . . . Garrison Access . | . . . Terminal Hacks 1 | . 1 . Robot Analysis 1 | . 1 . Fabricator Hacks . | . . . Repair Station Hacks . | . . . Recycling Unit Hacks . | . . . Scanalyzer . | . . . Garrison Access Hacks . | . . . Unauthorized Hacks 7 | . 7 . Terminals 7 | . 7 . Botnet 2 | . 2 . Skim 5 | . 5 . Fabricators . | . . . Repair Stations . | . . . Recycling Units . | . . . Scanalyzers . | . . . Garrison Access . | . . . Data Cores Recovered . | . . . Used . | . . . Hacking Detections 7 | . 7 . Full Trace Events . | . . . Feedback Events . | . . . Feedback Blocked . | . . . Robot Schematics Acquired . | . . . Robots Built . | . . . Authchips . | . . . Time . | . . . Total Robot Build Rating . | . . . Part Schematics Acquired . | . . . Parts Built . | . . . Authchips . | . . . Time . | . . . Total Part Build Rating . | . . . Part Studies Acquired . | . . . Parts Repaired . | . . . Time . | . . . Parts Recycled . | . . . Recycled Matter . | . . . Retrieved Matter . | . . . Retrieved Components . | . . . Parts Scanalyzed . | . . . Part Schematics Acquired . | . . . Parts Damaged . | . . . Bothacking | -11 -10 -10 ------------ Run | Yrd Mat Sub Used RIF Installer . | . . . Robots Hacked . | . . . Non-combat . | . . . Combat . | . . . Robot Hacks Applied . | . . . Relay Couplers Released . | . . . Fabnet Peak Effective % . | . . . Robots Rewired . | . . . Allies Hacked . | . . . Hacks Repelled . | . . . Allies | -11 -10 -10 -------- Run | Yrd Mat Sub Total Allies . | . . . Largest Group . | . . . Highest-Rated Group . | . . . Highest-Rated Ally . | . . . Total Orders . | . . . Ally Attacks . | . . . Total Damage . | . . . Kills . | . . . Allies Corrupted . | . . . Allies Melted . | . . . Intel | -11 -10 -10 ------- Run | Yrd Mat Sub Active Infowar (turns) 1850 | 79 1598 173 Seismic 1850 | 79 1598 173 Robot Analysis Total 1 | . 1 . Derelict Logs Recovered 1 | . . 1 Drone Launches . | . . . Drone Recoveries . | . . . Exploration | -11 -10 -10 ------------- Run | Yrd Mat Sub Turns Passed 4053 | 154 1598 2301 Spaces Moved 1584 | 77 674 833 Core 7 | 7 . . Treads 1577 | 70 674 833 Legs . | . . . Wheels . | . . . Hover . | . . . Flight . | . . . Fastest Speed 50 | 50 160 240 Average Speed 215 | 150 192 240 Slowest Speed 240 | 160 240 240 Overloaded Moves . | . . . Propulsion Burnouts . | . . . Robots Hopped . | . . . Potential Cave-ins . | . . . Cave-ins Triggered 2 | . . 2 Exploration Rate (%) 47 | 4 88 50 Regions Visited 2 Branch Regions 1 Pre-discovered Areas 1 | . . 1 Known Exits Taken . | . . . Unknown Exits Taken 2 | 1 1 . Scrap Searched 2 | . . 2 Spaces Dug . | . . . Terrain Destroyed 190 | . 95 95 Melee . | . . . Projectile 1 | . . 1 AOE 189 | . 95 94 Terrain Rammed . | . . . Walls Destroyed . | . . . Machines Disabled . | . . . Actions | -11 -10 -10 --------- Run | Yrd Mat Sub Total 2158 | 98 953 1107 Wait 478 | 4 244 230 Move 1582 | 76 673 833 Hop . | . . . Pick Up 20 | 2 8 10 Fast Attach 7 | 7 . . Attach 5 | . . 5 Detach . | . . . Swap 5 | . 3 2 Drop 2 | . 2 . Fire 53 | 9 17 27 Melee . | . . . Ram . | . . . Kick . | . . . Crush 6 | . 6 . Escape Stasis . | . . . Rewire . | . . . Trap . | . . . Miscellaneous . | . . . Route ------- -11/Scrapyard -10/Materials (discovered 6 exits: [*Mat x3] / *Min x2 / [*Sub]) -10/Subcaves (discovered 2 exits: *Mat x2) History --------- Turn | Location | Event 6 | -11/Scrapyard | Discovered new exit (range 15) 155 | -11/Scrapyard | Entered Materials 156 | -10/Materials | Met a group of wandering Federalists 308 | -10/Materials | Build established: Mutant 447 | -10/Materials | Discovered new exit (range 7) 565 | -10/Materials | Discovered new exit (range 6) 567 | -10/Materials | Discovered new exit (range 15) 802 | -10/Materials | Discovered new exit (range 6) 1103 | -10/Materials | Discovered new exit (range 11) 1537 | -10/Materials | Identified exit to Mines 1587 | -10/Materials | Learned Storage non-interactive machine intel 1625 | -10/Materials | Learned Storage security intel 1672 | -10/Materials | Learned 4 Recycling zone layouts 1684 | -10/Materials | Learned Storage emergency access door positions 1694 | -10/Materials | Learned location of 1 exit from Recycling 1715 | -10/Materials | Learned location of 1 exit from Storage 1753 | -10/Materials | Entered Subcaves 1754 | -10/Subcaves | Continued accompanying wandering Federalists (4) 1754 | -10/Subcaves | Approached by a straggling Scientist 1754 | -10/Subcaves | Identified exit to Materials 1918 | -10/Subcaves | Ambushed by Subdweller buried in earth 2230 | -10/Subcaves | Crushed by falling debris 2888 | -10/Subcaves | A swath of the cavern ceiling suddenly collapsed 3648 | -10/Subcaves | Learned location of Zion (-7) 3693 | -10/Subcaves | A Subdweller sparked back to life 3693 | -10/Subcaves | A Subdweller sparked back to life 3693 | -10/Subcaves | A Subdweller sparked back to life 3703 | -10/Subcaves | Core integrity fell below 50% 3728 | -10/Subcaves | Found Prototype Power Core 3733 | -10/Subcaves | Lost 4 parts (1p2n1w) 4055 | -10/Subcaves | Crushed by falling debris 4055 | -10/Subcaves | Smashed by cave-in Last Messages --------------- 03700_ Critical hit (Meltdown: +280). 03702_ Lgt. Ion Engine destroyed. 03705_ ZX-MFV(R) knocked back. 03708_ ZX-MFV(R) affixes Scrap Shield Fragment to Scrap Shield. 03711_ ZX-MFV(R) destroyed. 03712_ Subatomizers dissect the Prototype Power Core. 03721_ Acquired 22 matter. 03722_ Subatomizers dissect the Sub. Optics. 03728_ Acquired Prototype Power Core. 03739_ The unstable cave ceiling collapses. 03739_ Scrap Shield Fragment crushed. 03743_ Acquired 3 matter. 03746_ Acquired 4 matter. 03747_ Subatomizers dissect the Sub. Optics, destroying it. 03769_ Subatomizers dissect the Sub. Power Source, destroying it. 04035_ ZJ-7JQ(R) destroyed. 04035_ T0-3JD(R) destroyed. 04045_ Subatomizers dissect the Disposable Heat Sink, destroying it. 04055_ The unstable cave ceiling collapses. 04055_ Crushed by falling debris. Map ----- +----------------------------------------------------+ | ????????????????????????????????????????????? | | ????????????????????????????????????????????? | | ????????????????????????????????????????????? | | ????????????????????????????????????????????? | | ????????????????????????????????????????????? | | ????????????????????????????????????????????? | | ????????????????????????????????????????????? | | ????????????????????????????????????????????? | | ????????????????????????????????????????????? | | ????????????????????????????????????????????? | | ????????????????????????????????????????????? | | ????????????????????????????????????????????? | | ????????????????????????????????????????????? | | ????????????????????????????????????????????? | | ????????????????????????????????????????????? | | ????????????????????????#???????????????????? | | ???????????????????????? ???????????????????? | | ????????????????? "????? "####??????????????? | | ????????????????? " ???? " ##?????????????? | | ??????????????????" ??? " "#?????????????? | | ????????????????? ""u##?#"" "#?????????????? | | ?????????????????? ?# " " #?????????????? | | ??????????????????? "# #?????????????? | | ?????????????????????"" # ###????????????? | | ???????????????????????" #????????????? | | ????????????????????????#@"[& #????????????? | | ???????????????????##???#" %% #????????????? | | ???????????????????#"" ##" !& ##????????????? | | ????????????????????# #?????????????? | | ????????????????????# ## ##????????????? | | ???????????????????????## # #????????????? | | ????????????????????????### ##????????????? | | ?????????????????????????# ##?????????????? | | ????????????????????????## ##??????????????? | | ??????????????????????### ##???????????????? | | ?????????????? ??????# ##????????????????? | | ??????????????# ?????# ###???????????????? | | ??????????????# ?????# #???????????????? | | ????????????### ????## #???????????????? | | ???????????? ?????# #???????????????? | | ???????????? ???## ##??????????????? | | ????????????? #### ##?????????????? | | ?????????????? #### #?????????????? | | ????????????????# ##?# #?????????????? | | ???????????????##### ### #?????????????? | | ???????????????# #### #?????????????? | | ???????????????# ### #?????????????? | | ???????????????# ##?????????????? | | ???????????????# ######??????????????? | | ???????????????# ##???????????????????? | +----------------------------------------------------+ Best States ------------- Heat Dissipation 25 Energy Generation 10 Energy Capacity 250 Matter Stores 300 Matter Capacity 450 Sight Range 16 Terrain Scan Density 10 Evasion (%) 40 Recoil Reduction 2 Item Schematics ----------------- None Robot Schematics ------------------ None Fabricated ------------ Nothing Repaired ---------- Nothing Studied --------- None Alien Tech Used ----------------- None Achievements -------------- Strength In Numbers Challenges ------------ None Game ------ Seed MeleeEncryptedCloak Manual? 0 Play Time 00:12:15 Cumulative 438.4 hours Start 2026.08.17 @ 14:04:01 End 2026.08.17 @ 14:15:04 Sessions 1 Manual Loads 0 Difficulty Rogue Special Mode None Game No. 329 Rogue 329 Adventurer 0 Explorer 0 Win Type - Total 9 Types 4/0/3/2/0/0/0/0/0/0 Lore% 78 Gallery% 73 Achievement% 55 Wizard Run 0 Options --------- Layout 2 ASCII 0 Keyboard 1 Movement Vi Keybinds 0 Fullscreen 2 Font 32/SmallcapsGlow Map View 77x44 Zoom Use 0% Tactical HUD 1 Map Filters NONE Filters NONE Steam 1 RUN: 31303512-b830-4f8a-a9e0-c47f2f84ffab